[Event "Titled Tuesday Blitz July 27 2021"]
[White "Karttunen, Mika"]
[Black "Assaubayeva, Bibisara"]
[WhiteFideId "502081"]
[BlackFideId "13708694"]
[WhiteElo "2343"]
[BlackElo "2232"]
[Result "1/2-1/2"]
[Round "06"]
[TimeControl "180+1"]
[Date "2021.07.27"]
[WhiteClock "0:00:09"]
[BlackClock "0:00:18"]

1. c4 {[%clk 0:03:00]}  Nf6 {[%clk 0:02:59]} 2. g3 {[%clk 0:02:59]}  g6 {[%clk 0:02:59]} 3. Bg2 {[%clk 0:02:59]}  Bg7 {[%clk 0:03:00]} 4. Nc3 {[%clk 0:02:59]}  O-O {[%clk 0:03:01]} 5. d3 {[%clk 0:02:56]}  Nc6 {[%clk 0:02:59]} 6. Nf3 {[%clk 0:02:56]}  d6 {[%clk 0:02:58]} 7. O-O {[%clk 0:02:55]}  e5 {[%clk 0:02:59]} 8. Rb1 {[%clk 0:02:52]}  a5 {[%clk 0:02:57]} 9. a3 {[%clk 0:02:52]}  h6 {[%clk 0:02:57]} 10. b4 {[%clk 0:02:51]}  axb4 {[%clk 0:02:58]} 11. axb4 {[%clk 0:02:51]}  Be6 {[%clk 0:02:58]} 12. b5 {[%clk 0:02:40]}  Ne7 {[%clk 0:02:54]} 13. Bb2 {[%clk 0:02:35]}  Qd7 {[%clk 0:02:52]} 14. Re1 {[%clk 0:02:34]}  Bh3 {[%clk 0:02:43]} 15. Bh1 {[%clk 0:02:34]}  Nh5 {[%clk 0:02:29]} 16. Qb3 {[%clk 0:02:24]}  Kh7 {[%clk 0:02:23]} 17. Ne4 {[%clk 0:02:15]}  Be6 {[%clk 0:02:16]} 18. e3 {[%clk 0:01:35]}  f5 {[%clk 0:02:13]} 19. Nc3 {[%clk 0:01:35]}  f4 {[%clk 0:01:53]} 20. exf4 {[%clk 0:01:16]}  exf4 {[%clk 0:01:52]} 21. Ne4 {[%clk 0:01:15]}  fxg3 {[%clk 0:01:50]} 22. hxg3 {[%clk 0:01:09]}  Bg4 {[%clk 0:01:45]} 23. Bxg7 {[%clk 0:01:04]}  Nxg7 {[%clk 0:01:43]} 24. Nh2 {[%clk 0:00:51]}  Bf5 {[%clk 0:01:34]} 25. Qc3 {[%clk 0:00:45]}  Bxe4 {[%clk 0:01:18]} 26. Rxe4 {[%clk 0:00:42]}  d5 {[%clk 0:01:14]} 27. Re2 {[%clk 0:00:40]}  c6 {[%clk 0:01:04]} 28. Rbe1 {[%clk 0:00:40]}  Nef5 {[%clk 0:01:03]} 29. bxc6 {[%clk 0:00:35]}  bxc6 {[%clk 0:01:04]} 30. cxd5 {[%clk 0:00:35]}  cxd5 {[%clk 0:01:05]} 31. Ng4 {[%clk 0:00:35]}  Nxg3 {[%clk 0:00:58]} 32. Re7 {[%clk 0:00:29]}  d4 {[%clk 0:00:55]} 33. Rxd7 {[%clk 0:00:26]}  dxc3 {[%clk 0:00:56]} 34. fxg3 {[%clk 0:00:26]}  Rad8 {[%clk 0:00:50]} 35. Rxd8 {[%clk 0:00:25]}  Rxd8 {[%clk 0:00:51]} 36. Be4 {[%clk 0:00:25]}  h5 {[%clk 0:00:48]} 37. Ne5 {[%clk 0:00:25]}  Nf5 {[%clk 0:00:45]} 38. Kf2 {[%clk 0:00:23]}  Kg7 {[%clk 0:00:42]} 39. Bxf5 {[%clk 0:00:23]}  gxf5 {[%clk 0:00:42]} 40. Ke3 {[%clk 0:00:22]}  Kf6 {[%clk 0:00:41]} 41. d4 {[%clk 0:00:22]}  Rg8 {[%clk 0:00:41]} 42. Kf4 {[%clk 0:00:20]}  Rd8 {[%clk 0:00:40]} 43. Nf3 {[%clk 0:00:20]}  Rg8 {[%clk 0:00:36]} 44. Ne5 {[%clk 0:00:15]}  Rd8 {[%clk 0:00:36]} 45. Nc6 {[%clk 0:00:15]}  Rd6 {[%clk 0:00:33]} 46. Ne5 {[%clk 0:00:10]}  Rxd4+ {[%clk 0:00:33]} 47. Kf3 {[%clk 0:00:10]}  c2 {[%clk 0:00:31]} 48. Rc1 {[%clk 0:00:09]}  Kxe5 {[%clk 0:00:29]} 49. Rxc2 {[%clk 0:00:10]}  Rd3+ {[%clk 0:00:30]} 50. Kf2 {[%clk 0:00:10]}  Kf6 {[%clk 0:00:30]} 51. Kg2 {[%clk 0:00:10]}  Kg5 {[%clk 0:00:30]} 52. Rf2 {[%clk 0:00:09]}  Rd4 {[%clk 0:00:29]} 53. Kh2 {[%clk 0:00:09]}  Kg4 {[%clk 0:00:29]} 54. Kg2 {[%clk 0:00:10]}  Re4 {[%clk 0:00:28]} 55. Kh2 {[%clk 0:00:10]}  Kg5 {[%clk 0:00:29]} 56. Kg2 {[%clk 0:00:10]}  h4 {[%clk 0:00:29]} 57. gxh4+ {[%clk 0:00:11]}  Rxh4 {[%clk 0:00:30]} 58. Ra2 {[%clk 0:00:10]}  Rb4 {[%clk 0:00:29]} 59. Kg3 {[%clk 0:00:09]}  Rb3+ {[%clk 0:00:29]} 60. Kg2 {[%clk 0:00:10]}  Kg4 {[%clk 0:00:30]} 61. Rc2 {[%clk 0:00:10]}  f4 {[%clk 0:00:30]} 62. Ra2 {[%clk 0:00:10]}  Rg3+ {[%clk 0:00:29]} 63. Kf2 {[%clk 0:00:10]}  Rh3 {[%clk 0:00:29]} 64. Ra4 {[%clk 0:00:09]}  Rh2+ {[%clk 0:00:29]} 65. Kg1 {[%clk 0:00:09]}  Rb2 {[%clk 0:00:29]} 66. Ra3 {[%clk 0:00:09]}  f3 {[%clk 0:00:26]} 67. Ra8 {[%clk 0:00:09]}  Rb1+ {[%clk 0:00:24]} 68. Kf2 {[%clk 0:00:09]}  Rb2+ {[%clk 0:00:25]} 69. Kf1 {[%clk 0:00:09]}  Rb4 {[%clk 0:00:20]} 70. Kf2 {[%clk 0:00:08]}  Rb2+ {[%clk 0:00:18]} 71. Kf1 {[%clk 0:00:08]}  Kg3 {[%clk 0:00:16]} 72. Rg8+ {[%clk 0:00:08]}  Kf4 {[%clk 0:00:16]} 73. Rf8+ {[%clk 0:00:08]}  Kg3 {[%clk 0:00:16]} 74. Rg8+ {[%clk 0:00:08]}  Kf4 {[%clk 0:00:17]} 75. Rf8+ {[%clk 0:00:09]}  Kg3 {[%clk 0:00:18]} 76. Rg8+ {[%clk 0:00:09]} 1/2-1/2


[Site "https://www.chess.com"]

[Event "Titled Tuesday Blitz July 27 2021"]
[White "Kazakov, Mikhail"]
[Black "Maevsky, Nikolay"]
[WhiteFideId "14102749"]
[BlackFideId "4198220"]
[WhiteElo "2373"]
[BlackElo "2213"]
[Result "0-1"]
[Round "06"]
[TimeControl "180+1"]
[Date "2021.07.27"]
[WhiteClock "0:00:12"]
[BlackClock "0:00:15"]

1. d4 {[%clk 0:03:00]}  d5 {[%clk 0:02:59]} 2. c4 {[%clk 0:03:00]}  Nc6 {[%clk 0:02:59]} 3. Nf3 {[%clk 0:02:57]}  Bg4 {[%clk 0:02:59]} 4. e3 {[%clk 0:02:55]}  e5 {[%clk 0:02:56]} 5. dxe5 {[%clk 0:02:51]}  dxc4 {[%clk 0:02:56]} 6. Qxd8+ {[%clk 0:02:45]}  Rxd8 {[%clk 0:02:55]} 7. Bxc4 {[%clk 0:02:46]}  Nxe5 {[%clk 0:02:54]} 8. Be2 {[%clk 0:02:39]}  Bxf3 {[%clk 0:02:53]} 9. gxf3 {[%clk 0:02:38]}  Nd3+ {[%clk 0:02:53]} 10. Bxd3 {[%clk 0:02:38]}  Rxd3 {[%clk 0:02:54]} 11. Ke2 {[%clk 0:02:39]}  Rd7 {[%clk 0:02:54]} 12. Bd2 {[%clk 0:02:37]}  Ne7 {[%clk 0:02:49]} 13. Nc3 {[%clk 0:02:33]}  Nf5 {[%clk 0:02:46]} 14. Rhd1 {[%clk 0:02:28]}  Be7 {[%clk 0:02:41]} 15. Be1 {[%clk 0:02:27]}  c6 {[%clk 0:02:37]} 16. Ne4 {[%clk 0:02:23]}  h5 {[%clk 0:02:07]} 17. Bc3 {[%clk 0:02:20]}  Rh6 {[%clk 0:02:05]} 18. Rxd7 {[%clk 0:02:16]}  Kxd7 {[%clk 0:02:05]} 19. Rd1+ {[%clk 0:02:17]}  Kc8 {[%clk 0:01:57]} 20. Ng3 {[%clk 0:02:15]}  Nxg3+ {[%clk 0:01:52]} 21. hxg3 {[%clk 0:02:16]}  Rh7 {[%clk 0:01:40]} 22. f4 {[%clk 0:02:11]}  f5 {[%clk 0:01:35]} 23. f3 {[%clk 0:02:03]}  g6 {[%clk 0:01:35]} 24. e4 {[%clk 0:02:03]}  fxe4 {[%clk 0:01:05]} 25. fxe4 {[%clk 0:02:04]}  Bd8 {[%clk 0:01:05]} 26. Kf3 {[%clk 0:02:02]}  Rd7 {[%clk 0:01:04]} 27. Rg1 {[%clk 0:01:48]}  Bb6 {[%clk 0:01:02]} 28. Rg2 {[%clk 0:01:46]}  Rd3+ {[%clk 0:00:59]} 29. Ke2 {[%clk 0:01:46]}  Re3+ {[%clk 0:00:59]} 30. Kd2 {[%clk 0:01:46]}  Rxe4 {[%clk 0:01:00]} 31. Be5 {[%clk 0:01:39]}  Bc7 {[%clk 0:00:52]} 32. Kd3 {[%clk 0:01:34]}  Re1 {[%clk 0:00:50]} 33. Bc3 {[%clk 0:01:33]}  Rf1 {[%clk 0:00:46]} 34. Ke2 {[%clk 0:01:30]}  Ra1 {[%clk 0:00:45]} 35. a3 {[%clk 0:01:28]}  Kd7 {[%clk 0:00:45]} 36. Kf3 {[%clk 0:01:27]}  Rf1+ {[%clk 0:00:44]} 37. Ke4 {[%clk 0:01:26]}  Ke6 {[%clk 0:00:41]} 38. Re2 {[%clk 0:01:25]}  Rd1 {[%clk 0:00:35]} 39. Kf3+ {[%clk 0:01:21]}  Kf7 {[%clk 0:00:33]} 40. Rh2 {[%clk 0:01:14]}  Rd3+ {[%clk 0:00:33]} 41. Kg2 {[%clk 0:01:12]}  Bd6 {[%clk 0:00:30]} 42. a4 {[%clk 0:01:08]}  b5 {[%clk 0:00:27]} 43. axb5 {[%clk 0:01:05]}  cxb5 {[%clk 0:00:27]} 44. Rh1 {[%clk 0:01:00]}  b4 {[%clk 0:00:28]} 45. Bh8 {[%clk 0:00:59]}  Rd2+ {[%clk 0:00:27]} 46. Kf3 {[%clk 0:00:58]}  a5 {[%clk 0:00:26]} 47. Ra1 {[%clk 0:00:54]}  Rd3+ {[%clk 0:00:22]} 48. Ke4 {[%clk 0:00:52]}  Rxg3 {[%clk 0:00:20]} 49. Rxa5 {[%clk 0:00:52]}  Rg4 {[%clk 0:00:19]} 50. Ra7+ {[%clk 0:00:48]}  Ke6 {[%clk 0:00:19]} 51. Ra6 {[%clk 0:00:43]}  Rxf4+ {[%clk 0:00:18]} 52. Ke3 {[%clk 0:00:40]}  Rf5 {[%clk 0:00:18]} 53. Ke4 {[%clk 0:00:31]}  h4 {[%clk 0:00:17]} 54. Ra7 {[%clk 0:00:22]}  Rh5 {[%clk 0:00:16]} 55. Rg7 {[%clk 0:00:17]}  Rxh8 {[%clk 0:00:14]} 56. Rxg6+ {[%clk 0:00:17]}  Kd7 {[%clk 0:00:14]} 57. Kd5 {[%clk 0:00:15]}  Be7 {[%clk 0:00:14]} 58. Ra6 {[%clk 0:00:12]}  Rh5+ {[%clk 0:00:14]} 59. Ke4 {[%clk 0:00:12]}  h3 {[%clk 0:00:15]} 0-1


[Site "https://www.chess.com"]

[Event "Titled Tuesday Blitz July 27 2021"]
[White "Kim, Sergey"]
[Black "Ivanov, Oleg"]
[WhiteFideId "13700570"]
[BlackFideId "4103114"]
[WhiteElo "2549"]
[BlackElo "2763"]
[Result "0-1"]
[Round "06"]
[TimeControl "180+1"]
[Date "2021.07.27"]
[WhiteClock "0:00:06"]
[BlackClock "0:00:07"]

1. d4 {[%clk 0:03:00]}  c5 {[%clk 0:02:57]} 2. d5 {[%clk 0:03:00]}  e5 {[%clk 0:02:57]} 3. Nc3 {[%clk 0:02:59]}  d6 {[%clk 0:02:57]} 4. e4 {[%clk 0:02:59]}  Be7 {[%clk 0:02:58]} 5. Be2 {[%clk 0:02:59]}  Bg5 {[%clk 0:02:57]} 6. Nf3 {[%clk 0:02:59]}  Bxc1 {[%clk 0:02:57]} 7. Qxc1 {[%clk 0:02:59]}  Nf6 {[%clk 0:02:56]} 8. Qg5 {[%clk 0:02:59]}  O-O {[%clk 0:02:53]} 9. Nd2 {[%clk 0:02:59]}  Nbd7 {[%clk 0:02:44]} 10. Nc4 {[%clk 0:02:52]}  Nb6 {[%clk 0:02:36]} 11. Ne3 {[%clk 0:02:49]}  h6 {[%clk 0:02:32]} 12. Qg3 {[%clk 0:02:46]}  Bd7 {[%clk 0:02:32]} 13. a4 {[%clk 0:02:45]}  a6 {[%clk 0:02:19]} 14. O-O {[%clk 0:02:41]}  Nc8 {[%clk 0:02:17]} 15. Nc4 {[%clk 0:02:35]}  Rb8 {[%clk 0:02:13]} 16. a5 {[%clk 0:02:26]}  Bb5 {[%clk 0:02:08]} 17. f4 {[%clk 0:01:55]}  Bxc4 {[%clk 0:02:01]} 18. Bxc4 {[%clk 0:01:54]}  Nh5 {[%clk 0:01:58]} 19. Qf3 {[%clk 0:01:54]}  Nxf4 {[%clk 0:01:57]} 20. g3 {[%clk 0:01:54]}  Nh3+ {[%clk 0:01:42]} 21. Kg2 {[%clk 0:01:52]}  Ng5 {[%clk 0:01:43]} 22. Qg4 {[%clk 0:01:50]}  Ne7 {[%clk 0:01:43]} 23. h4 {[%clk 0:01:46]}  Nh7 {[%clk 0:01:42]} 24. Rf2 {[%clk 0:01:40]}  Qc8 {[%clk 0:01:33]} 25. Be2 {[%clk 0:01:33]}  Qxg4 {[%clk 0:01:24]} 26. Bxg4 {[%clk 0:01:33]}  Nf6 {[%clk 0:01:25]} 27. Rxf6 {[%clk 0:01:17]}  gxf6 {[%clk 0:01:24]} 28. Na4 {[%clk 0:01:17]}  Nc8 {[%clk 0:01:16]} 29. Bxc8 {[%clk 0:01:15]}  Rbxc8 {[%clk 0:01:15]} 30. Nb6 {[%clk 0:01:11]}  Rc7 {[%clk 0:01:14]} 31. Nc4 {[%clk 0:01:11]}  Rd7 {[%clk 0:01:09]} 32. Rf1 {[%clk 0:01:10]}  Kg7 {[%clk 0:01:06]} 33. h5 {[%clk 0:01:09]}  Rg8 {[%clk 0:01:03]} 34. g4 {[%clk 0:01:07]}  Kf8 {[%clk 0:00:58]} 35. Kg3 {[%clk 0:01:06]}  Ke7 {[%clk 0:00:58]} 36. Rf3 {[%clk 0:01:00]}  Rdd8 {[%clk 0:00:58]} 37. Rb3 {[%clk 0:00:59]}  Rb8 {[%clk 0:00:55]} 38. Rb6 {[%clk 0:00:58]}  Rgd8 {[%clk 0:00:55]} 39. Ne3 {[%clk 0:00:57]}  Kd7 {[%clk 0:00:45]} 40. Nf5 {[%clk 0:00:55]}  Kc7 {[%clk 0:00:46]} 41. Nxh6 {[%clk 0:00:54]}  Rf8 {[%clk 0:00:45]} 42. Kh4 {[%clk 0:00:53]}  Rbd8 {[%clk 0:00:44]} 43. Rb3 {[%clk 0:00:50]}  Rd7 {[%clk 0:00:43]} 44. Rb6 {[%clk 0:00:49]}  Rh8 {[%clk 0:00:42]} 45. Nf5 {[%clk 0:00:49]}  Rdd8 {[%clk 0:00:42]} 46. h6 {[%clk 0:00:48]}  Rh7 {[%clk 0:00:40]} 47. Kh5 {[%clk 0:00:46]}  Rg8 {[%clk 0:00:39]} 48. Kh4 {[%clk 0:00:46]}  Rg6 {[%clk 0:00:37]} 49. Kh5 {[%clk 0:00:44]}  Rg5+ {[%clk 0:00:37]} 50. Kh4 {[%clk 0:00:44]}  Rxf5 {[%clk 0:00:35]} 51. gxf5 {[%clk 0:00:41]}  Rxh6+ {[%clk 0:00:36]} 52. Kg3 {[%clk 0:00:42]}  Rh1 {[%clk 0:00:36]} 53. Rb3 {[%clk 0:00:40]}  Re1 {[%clk 0:00:34]} 54. Kf3 {[%clk 0:00:39]}  Rc1 {[%clk 0:00:28]} 55. Rc3 {[%clk 0:00:38]}  Ra1 {[%clk 0:00:29]} 56. Ke2 {[%clk 0:00:34]}  Ra4 {[%clk 0:00:27]} 57. Re3 {[%clk 0:00:31]}  Ra2 {[%clk 0:00:27]} 58. Rb3 {[%clk 0:00:29]}  Kc8 {[%clk 0:00:22]} 59. Rb6 {[%clk 0:00:26]}  Kc7 {[%clk 0:00:18]} 60. Rb3 {[%clk 0:00:26]}  Ra4 {[%clk 0:00:17]} 61. Re3 {[%clk 0:00:25]}  Rc4 {[%clk 0:00:18]} 62. Kd2 {[%clk 0:00:23]}  Ra4 {[%clk 0:00:15]} 63. Kd3 {[%clk 0:00:20]}  Rxa5 {[%clk 0:00:12]} 64. Rh3 {[%clk 0:00:19]}  Ra2 {[%clk 0:00:12]} 65. Kc3 {[%clk 0:00:19]}  Ra4 {[%clk 0:00:12]} 66. Kd3 {[%clk 0:00:18]}  Ra2 {[%clk 0:00:12]} 67. Kc3 {[%clk 0:00:18]}  b5 {[%clk 0:00:12]} 68. Rh7 {[%clk 0:00:17]}  c4 {[%clk 0:00:11]} 69. Rxf7+ {[%clk 0:00:16]}  Kb6 {[%clk 0:00:12]} 70. Rxf6 {[%clk 0:00:15]}  Kc5 {[%clk 0:00:12]} 71. Rf8 {[%clk 0:00:10]}  b4+ {[%clk 0:00:12]} 72. Kd2 {[%clk 0:00:10]}  Rxb2 {[%clk 0:00:13]} 73. f6 {[%clk 0:00:10]}  b3 {[%clk 0:00:10]} 74. f7 {[%clk 0:00:10]}  Rxc2+ {[%clk 0:00:09]} 75. Kd1 {[%clk 0:00:10]}  Rf2 {[%clk 0:00:09]} 76. Rc8+ {[%clk 0:00:09]}  Kd4 {[%clk 0:00:09]} 77. f8=Q {[%clk 0:00:10]}  Rxf8 {[%clk 0:00:09]} 78. Rxf8 {[%clk 0:00:10]}  c3 {[%clk 0:00:10]} 79. Rd8 {[%clk 0:00:09]}  Kd3 {[%clk 0:00:07]} 80. Rxd6 {[%clk 0:00:08]}  b2 {[%clk 0:00:07]} 81. Rb6 {[%clk 0:00:06]}  c2+ {[%clk 0:00:07]} 0-1


[Site "https://www.chess.com"]

[Event "Titled Tuesday Blitz July 27 2021"]
[White "Kobo, Ori"]
[Black "Dev, Shah"]
[WhiteFideId "2812320"]
[BlackFideId "35019058"]
[WhiteElo "2431"]
[BlackElo "2098"]
[Result "1-0"]
[Round "06"]
[TimeControl "180+1"]
[Date "2021.07.27"]
[WhiteClock "0:00:59"]
[BlackClock "0:01:56"]

1. d4 {[%clk 0:03:00]}  d5 {[%clk 0:03:00]} 2. c4 {[%clk 0:03:01]}  dxc4 {[%clk 0:03:01]} 3. Nf3 {[%clk 0:02:59]}  Nf6 {[%clk 0:03:00]} 4. e3 {[%clk 0:02:59]}  e6 {[%clk 0:03:00]} 5. Bxc4 {[%clk 0:02:59]}  c5 {[%clk 0:03:01]} 6. O-O {[%clk 0:02:59]}  a6 {[%clk 0:03:01]} 7. Re1 {[%clk 0:03:00]}  Nc6 {[%clk 0:02:59]} 8. Bf1 {[%clk 0:02:58]}  cxd4 {[%clk 0:02:58]} 9. exd4 {[%clk 0:02:57]}  Be7 {[%clk 0:02:58]} 10. Nc3 {[%clk 0:02:57]}  O-O {[%clk 0:02:58]} 11. Bg5 {[%clk 0:02:52]}  b5 {[%clk 0:02:54]} 12. Rc1 {[%clk 0:02:37]}  Bb7 {[%clk 0:02:54]} 13. a3 {[%clk 0:02:34]}  b4 {[%clk 0:02:52]} 14. axb4 {[%clk 0:02:31]}  Nxb4 {[%clk 0:02:53]} 15. Ne5 {[%clk 0:02:30]}  Nfd5 {[%clk 0:02:48]} 16. Bd2 {[%clk 0:02:15]}  Rc8 {[%clk 0:02:45]} 17. Qg4 {[%clk 0:02:12]}  Kh8 {[%clk 0:02:36]} 18. Qh3 {[%clk 0:02:03]}  Bg5 {[%clk 0:02:24]} 19. Bxg5 {[%clk 0:01:39]}  Qxg5 {[%clk 0:02:23]} 20. Ne4 {[%clk 0:01:39]}  Qe7 {[%clk 0:02:11]} 21. Rxc8 {[%clk 0:01:30]}  Rxc8 {[%clk 0:02:10]} 22. Ng5 {[%clk 0:01:26]}  h6 {[%clk 0:02:03]} 23. Nexf7+ {[%clk 0:01:12]}  Kg8 {[%clk 0:02:03]} 24. Rxe6 {[%clk 0:01:11]}  Qf8 {[%clk 0:01:55]} 25. Nxh6+ {[%clk 0:01:09]}  gxh6 {[%clk 0:01:56]} 26. Rg6+ {[%clk 0:01:09]}  Kh8 {[%clk 0:01:56]} 27. Rxh6+ {[%clk 0:01:06]}  Kg7 {[%clk 0:01:56]} 28. Ne6+ {[%clk 0:00:59]} 1-0


[Site "https://www.chess.com"]

[Event "Titled Tuesday Blitz July 27 2021"]
[White "Krasilnikov, Evgeni"]
[Black "Vlassov, Nikolai"]
[WhiteFideId "4139739"]
[BlackFideId "4103360"]
[WhiteElo "2330"]
[BlackElo "2407"]
[Result "1-0"]
[Round "06"]
[TimeControl "180+1"]
[Date "2021.07.27"]
[WhiteClock "0:00:24"]
[BlackClock "0:00:50"]

1. e4 {[%clk 0:03:00]}  Nc6 {[%clk 0:02:59]} 2. Nf3 {[%clk 0:02:59]}  d5 {[%clk 0:02:59]} 3. exd5 {[%clk 0:02:59]}  Qxd5 {[%clk 0:03:00]} 4. Nc3 {[%clk 0:02:59]}  Qa5 {[%clk 0:03:01]} 5. d4 {[%clk 0:02:59]}  Bg4 {[%clk 0:03:01]} 6. d5 {[%clk 0:02:57]}  O-O-O {[%clk 0:03:01]} 7. Bd2 {[%clk 0:02:55]}  Nb4 {[%clk 0:03:00]} 8. Bc4 {[%clk 0:02:42]}  Bxf3 {[%clk 0:03:00]} 9. gxf3 {[%clk 0:02:37]}  Nf6 {[%clk 0:03:00]} 10. a3 {[%clk 0:02:35]}  Qc5 {[%clk 0:03:01]} 11. axb4 {[%clk 0:02:31]}  Qxc4 {[%clk 0:03:01]} 12. Rxa7 {[%clk 0:02:26]}  Nxd5 {[%clk 0:03:01]} 13. Ra8+ {[%clk 0:02:24]}  Kd7 {[%clk 0:03:01]} 14. Rxd8+ {[%clk 0:02:23]}  Kxd8 {[%clk 0:03:02]} 15. b3 {[%clk 0:02:17]}  Qc6 {[%clk 0:02:30]} 16. Nxd5 {[%clk 0:02:13]}  Qxd5 {[%clk 0:02:30]} 17. Bc3 {[%clk 0:01:49]}  Qxd1+ {[%clk 0:02:28]} 18. Kxd1 {[%clk 0:01:50]}  f6 {[%clk 0:02:20]} 19. Ke2 {[%clk 0:01:42]}  e5 {[%clk 0:02:20]} 20. Ra1 {[%clk 0:01:41]}  Kd7 {[%clk 0:02:19]} 21. Ra8 {[%clk 0:01:40]}  g6 {[%clk 0:02:19]} 22. Rb8 {[%clk 0:01:35]}  b6 {[%clk 0:02:12]} 23. f4 {[%clk 0:01:26]}  Bg7 {[%clk 0:02:10]} 24. Rxh8 {[%clk 0:01:23]}  Bxh8 {[%clk 0:02:10]} 25. fxe5 {[%clk 0:01:23]}  fxe5 {[%clk 0:02:11]} 26. Ke3 {[%clk 0:01:19]}  Ke6 {[%clk 0:02:09]} 27. Ke4 {[%clk 0:01:19]}  Bf6 {[%clk 0:02:07]} 28. b5 {[%clk 0:01:14]}  g5 {[%clk 0:01:53]} 29. f3 {[%clk 0:01:12]}  h5 {[%clk 0:01:53]} 30. h3 {[%clk 0:01:11]}  Bg7 {[%clk 0:01:53]} 31. Bd2 {[%clk 0:01:03]}  Bf6 {[%clk 0:01:53]} 32. c4 {[%clk 0:01:00]}  Be7 {[%clk 0:01:52]} 33. Bc3 {[%clk 0:00:57]}  Bf6 {[%clk 0:01:46]} 34. Bd2 {[%clk 0:00:54]}  Be7 {[%clk 0:01:46]} 35. Be3 {[%clk 0:00:49]}  Bf6 {[%clk 0:01:45]} 36. c5 {[%clk 0:00:44]}  bxc5 {[%clk 0:01:27]} 37. Bxc5 {[%clk 0:00:44]}  Bd8 {[%clk 0:01:27]} 38. Bb4 {[%clk 0:00:40]}  Bf6 {[%clk 0:01:21]} 39. Ba5 {[%clk 0:00:39]}  Bd8 {[%clk 0:01:19]} 40. Bc3 {[%clk 0:00:38]}  Bf6 {[%clk 0:01:19]} 41. Bb4 {[%clk 0:00:38]}  Bd8 {[%clk 0:01:15]} 42. Bc5 {[%clk 0:00:38]}  Bf6 {[%clk 0:01:03]} 43. b6 {[%clk 0:00:37]}  cxb6 {[%clk 0:01:02]} 44. Bxb6 {[%clk 0:00:37]}  Be7 {[%clk 0:01:03]} 45. Be3 {[%clk 0:00:35]}  Kf6 {[%clk 0:00:56]} 46. Bd2 {[%clk 0:00:33]}  Bf8 {[%clk 0:00:52]} 47. b4 {[%clk 0:00:32]}  g4 {[%clk 0:00:47]} 48. fxg4 {[%clk 0:00:31]}  hxg4 {[%clk 0:00:48]} 49. hxg4 {[%clk 0:00:31]}  Bxb4 {[%clk 0:00:47]} 50. Bxb4 {[%clk 0:00:28]}  Kg5 {[%clk 0:00:48]} 51. Kf3 {[%clk 0:00:28]}  e4+ {[%clk 0:00:49]} 52. Kg3 {[%clk 0:00:27]}  e3 {[%clk 0:00:49]} 53. Be1 {[%clk 0:00:25]}  e2 {[%clk 0:00:49]} 54. Bd2+ {[%clk 0:00:24]}  Kf6 {[%clk 0:00:50]} 55. Kf3 {[%clk 0:00:24]} 1-0


[Site "https://www.chess.com"]

[Event "Titled Tuesday Blitz July 27 2021"]
[White "Kretov, Evgenij"]
[Black "Najdin, Danil"]
[WhiteFideId "4167821"]
[BlackFideId "4172426"]
[WhiteElo "2400"]
[BlackElo "2193"]
[Result "0-1"]
[Round "06"]
[TimeControl "180+1"]
[Date "2021.07.27"]
[WhiteClock "0:01:44"]
[BlackClock "0:01:21"]

1. d4 {[%clk 0:03:00]}  Nf6 {[%clk 0:02:59]} 2. c4 {[%clk 0:03:01]}  g6 {[%clk 0:02:59]} 3. Nc3 {[%clk 0:03:01]}  Bg7 {[%clk 0:03:00]} 4. e4 {[%clk 0:03:01]}  d6 {[%clk 0:03:01]} 5. Be2 {[%clk 0:03:02]}  O-O {[%clk 0:03:01]} 6. Bg5 {[%clk 0:03:03]}  Na6 {[%clk 0:02:58]} 7. Qd2 {[%clk 0:03:03]}  e5 {[%clk 0:02:56]} 8. d5 {[%clk 0:03:03]}  Nc5 {[%clk 0:02:56]} 9. f3 {[%clk 0:03:02]}  a5 {[%clk 0:02:57]} 10. O-O-O {[%clk 0:03:03]}  Bd7 {[%clk 0:02:48]} 11. g4 {[%clk 0:03:03]}  a4 {[%clk 0:02:46]} 12. h4 {[%clk 0:03:03]}  c6 {[%clk 0:02:47]} 13. h5 {[%clk 0:02:57]}  Qb6 {[%clk 0:02:33]} 14. h6 {[%clk 0:02:47]}  Bh8 {[%clk 0:02:33]} 15. dxc6 {[%clk 0:02:44]}  bxc6 {[%clk 0:02:29]} 16. Qxd6 {[%clk 0:02:41]}  Rfb8 {[%clk 0:02:14]} 17. Rd2 {[%clk 0:02:35]}  Ne8 {[%clk 0:01:59]} 18. Qe7 {[%clk 0:02:21]}  a3 {[%clk 0:01:55]} 19. b3 {[%clk 0:02:17]}  Nxb3+ {[%clk 0:01:42]} 20. axb3 {[%clk 0:02:13]}  Qxb3 {[%clk 0:01:43]} 21. Rc2 {[%clk 0:02:07]}  a2 {[%clk 0:01:35]} 22. Nxa2 {[%clk 0:01:57]}  Rxa2 {[%clk 0:01:35]} 23. Rxa2 {[%clk 0:01:57]}  Qxa2 {[%clk 0:01:36]} 24. Bd3 {[%clk 0:01:56]}  Rb2 {[%clk 0:01:28]} 25. Kd1 {[%clk 0:01:50]}  Qb3+ {[%clk 0:01:26]} 26. Ke1 {[%clk 0:01:50]}  Qc3+ {[%clk 0:01:21]} 27. Kf1 {[%clk 0:01:44]}  Qxd3+ {[%clk 0:01:21]} 28. Ke1 {[%clk 0:01:44]}  Qb1+ {[%clk 0:01:21]} 0-1


[Site "https://www.chess.com"]

[Event "Titled Tuesday Blitz July 27 2021"]
[White "Krivonosov, Oleg"]
[Black "Ginzburg, Yakov"]
[WhiteFideId "11600349"]
[BlackFideId "4157176"]
[WhiteElo "2469"]
[BlackElo "2276"]
[Result "1-0"]
[Round "06"]
[TimeControl "180+1"]
[Date "2021.07.27"]
[WhiteClock "0:01:21"]
[BlackClock "0:00:01"]

1. Nf3 {[%clk 0:03:00]}  Nf6 {[%clk 0:02:58]} 2. c4 {[%clk 0:03:00]}  c6 {[%clk 0:02:58]} 3. d4 {[%clk 0:02:58]}  d5 {[%clk 0:02:58]} 4. cxd5 {[%clk 0:02:59]}  cxd5 {[%clk 0:02:58]} 5. Nc3 {[%clk 0:02:59]}  Nc6 {[%clk 0:02:58]} 6. Bf4 {[%clk 0:03:00]}  Bf5 {[%clk 0:02:58]} 7. e3 {[%clk 0:02:59]}  e6 {[%clk 0:02:58]} 8. Qb3 {[%clk 0:02:58]}  Bb4 {[%clk 0:02:58]} 9. Bb5 {[%clk 0:02:57]}  O-O {[%clk 0:02:58]} 10. Bxc6 {[%clk 0:02:56]}  Bxc3+ {[%clk 0:02:57]} 11. Qxc3 {[%clk 0:02:57]}  Rc8 {[%clk 0:02:49]} 12. Ne5 {[%clk 0:02:56]}  bxc6 {[%clk 0:02:48]} 13. Bg5 {[%clk 0:02:47]}  Ne4 {[%clk 0:02:28]} 14. Bxd8 {[%clk 0:02:46]}  Nxc3 {[%clk 0:02:27]} 15. Ba5 {[%clk 0:02:43]}  f6 {[%clk 0:01:54]} 16. Nxc6 {[%clk 0:02:24]}  Rxc6 {[%clk 0:01:54]} 17. Bxc3 {[%clk 0:02:23]}  Bd3 {[%clk 0:01:27]} 18. Kd2 {[%clk 0:02:20]}  Bb5 {[%clk 0:01:25]} 19. Rhc1 {[%clk 0:02:13]}  e5 {[%clk 0:01:23]} 20. Bb4 {[%clk 0:02:08]}  Rfc8 {[%clk 0:01:20]} 21. Rxc6 {[%clk 0:02:07]}  Rxc6 {[%clk 0:01:20]} 22. Bc5 {[%clk 0:02:07]}  a5 {[%clk 0:00:58]} 23. Rc1 {[%clk 0:02:00]}  Kf7 {[%clk 0:00:49]} 24. Rc3 {[%clk 0:01:58]}  a4 {[%clk 0:00:45]} 25. Ra3 {[%clk 0:01:48]}  Ke6 {[%clk 0:00:43]} 26. b3 {[%clk 0:01:46]}  Ra6 {[%clk 0:00:42]} 27. bxa4 {[%clk 0:01:42]}  Bxa4 {[%clk 0:00:38]} 28. Kc3 {[%clk 0:01:40]}  Bb5 {[%clk 0:00:22]} 29. Rxa6+ {[%clk 0:01:39]}  Bxa6 {[%clk 0:00:23]} 30. Kb4 {[%clk 0:01:39]}  Bc4 {[%clk 0:00:19]} 31. a4 {[%clk 0:01:37]}  Kd7 {[%clk 0:00:19]} 32. Bf8 {[%clk 0:01:36]}  g6 {[%clk 0:00:10]} 33. Kc5 {[%clk 0:01:34]}  exd4 {[%clk 0:00:09]} 34. Kxd4 {[%clk 0:01:32]}  Kc6 {[%clk 0:00:09]} 35. Be7 {[%clk 0:01:30]}  f5 {[%clk 0:00:09]} 36. Ke5 {[%clk 0:01:29]}  Bb3 {[%clk 0:00:07]} 37. a5 {[%clk 0:01:28]}  Kb5 {[%clk 0:00:07]} 38. Bd8 {[%clk 0:01:28]}  Bc4 {[%clk 0:00:05]} 39. g3 {[%clk 0:01:25]}  Kc6 {[%clk 0:00:03]} 40. Kf6 {[%clk 0:01:23]}  Bd3 {[%clk 0:00:01]} 41. Bb6 {[%clk 0:01:21]} 1-0


[Site "https://www.chess.com"]